[Event "Titled Tuesday Blitz February 22 Early 2022"]
[White "Necula, Iulian"]
[Black "Fakhretdinova, Margarita"]
[WhiteFideId "1232380"]
[BlackFideId "24103667"]
[WhiteElo "1776"]
[BlackElo "2204"]
[Result "0-1"]
[Round "08"]
[TimeControl "180+1"]
[Date "2022.02.22"]
[WhiteClock "0:00:20"]
[BlackClock "0:00:08"]

1. b4 {[%clk 0:03:00]}  c6 {[%clk 0:02:51]} 2. Bb2 {[%clk 0:03:00]}  d6 {[%clk 0:02:50]} 3. e3 {[%clk 0:02:59]}  e5 {[%clk 0:02:50]} 4. Nf3 {[%clk 0:02:59]}  Nd7 {[%clk 0:02:51]} 5. Be2 {[%clk 0:02:57]}  Ngf6 {[%clk 0:02:51]} 6. O-O {[%clk 0:02:56]}  Be7 {[%clk 0:02:49]} 7. d4 {[%clk 0:02:56]}  e4 {[%clk 0:02:45]} 8. Nfd2 {[%clk 0:02:56]}  O-O {[%clk 0:02:44]} 9. f3 {[%clk 0:02:56]}  exf3 {[%clk 0:02:38]} 10. Bxf3 {[%clk 0:02:56]}  d5 {[%clk 0:02:38]} 11. a3 {[%clk 0:02:53]}  Bd6 {[%clk 0:02:36]} 12. c4 {[%clk 0:02:51]}  dxc4 {[%clk 0:02:26]} 13. Nxc4 {[%clk 0:02:50]}  Bc7 {[%clk 0:02:27]} 14. Nbd2 {[%clk 0:02:48]}  Re8 {[%clk 0:02:25]} 15. e4 {[%clk 0:02:46]}  Nb6 {[%clk 0:02:20]} 16. Ne5 {[%clk 0:02:38]}  Nbd7 {[%clk 0:02:08]} 17. Ndc4 {[%clk 0:02:15]}  Nb6 {[%clk 0:01:32]} 18. Nxb6 {[%clk 0:02:06]}  axb6 {[%clk 0:01:33]} 19. Qb3 {[%clk 0:01:35]}  Bxe5 {[%clk 0:01:29]} 20. dxe5 {[%clk 0:01:35]}  Be6 {[%clk 0:01:29]} 21. Qe3 {[%clk 0:01:25]}  Nd7 {[%clk 0:01:22]} 22. Rad1 {[%clk 0:01:23]}  Qh4 {[%clk 0:01:18]} 23. g3 {[%clk 0:01:18]}  Qe7 {[%clk 0:01:12]} 24. Rd2 {[%clk 0:01:12]}  Nf8 {[%clk 0:01:00]} 25. Rfd1 {[%clk 0:01:11]}  Qc7 {[%clk 0:00:58]} 26. Rd6 {[%clk 0:01:05]}  Nd7 {[%clk 0:00:42]} 27. R1d2 {[%clk 0:01:02]}  b5 {[%clk 0:00:40]} 28. Bg2 {[%clk 0:00:47]}  Nb6 {[%clk 0:00:39]} 29. Bf1 {[%clk 0:00:43]}  Bc4 {[%clk 0:00:37]} 30. Bd4 {[%clk 0:00:31]}  Nc8 {[%clk 0:00:24]} 31. Bxc4 {[%clk 0:00:29]}  bxc4 {[%clk 0:00:19]} 32. Bc5 {[%clk 0:00:27]}  Nxd6 {[%clk 0:00:18]} 33. exd6 {[%clk 0:00:28]}  Qd7 {[%clk 0:00:16]} 34. e5 {[%clk 0:00:28]}  Re6 {[%clk 0:00:16]} 35. Bd4 {[%clk 0:00:26]}  Rae8 {[%clk 0:00:16]} 36. Qc3 {[%clk 0:00:26]}  b5 {[%clk 0:00:16]} 37. a4 {[%clk 0:00:25]}  Qb7 {[%clk 0:00:12]} 38. Rf2 {[%clk 0:00:24]}  f6 {[%clk 0:00:10]} 39. axb5 {[%clk 0:00:24]}  cxb5 {[%clk 0:00:09]} 40. exf6 {[%clk 0:00:22]}  Re1+ {[%clk 0:00:09]} 41. Rf1 {[%clk 0:00:23]}  Rxf1+ {[%clk 0:00:09]} 42. Kxf1 {[%clk 0:00:23]}  Qh1+ {[%clk 0:00:10]} 43. Kf2 {[%clk 0:00:23]}  Qxh2+ {[%clk 0:00:10]} 44. Kf3 {[%clk 0:00:22]}  Qh1+ {[%clk 0:00:11]} 45. Kg4 {[%clk 0:00:22]}  Re4+ {[%clk 0:00:10]} 46. Kf5 {[%clk 0:00:22]}  g6+ {[%clk 0:00:07]} 47. Kg5 {[%clk 0:00:20]}  Qh5# {[%clk 0:00:08]} 0-1


[Site "https://www.chess.com"]

[Event "Titled Tuesday Blitz February 22 Early 2022"]
[White "Oro, Luis"]
[Black "Sahin, Handenur"]
[WhiteFideId "104094"]
[BlackFideId "6334865"]
[WhiteElo "2283"]
[BlackElo "2116"]
[Result "0-1"]
[Round "08"]
[TimeControl "180+1"]
[Date "2022.02.22"]
[WhiteClock "0:00:20"]
[BlackClock "0:00:33"]

1. e4 {[%clk 0:03:00]}  e5 {[%clk 0:02:59]} 2. Nf3 {[%clk 0:03:01]}  Nc6 {[%clk 0:02:59]} 3. Bc4 {[%clk 0:03:01]}  Nf6 {[%clk 0:02:58]} 4. d3 {[%clk 0:02:58]}  Bc5 {[%clk 0:02:58]} 5. c3 {[%clk 0:02:58]}  d6 {[%clk 0:02:58]} 6. a4 {[%clk 0:02:56]}  a6 {[%clk 0:02:56]} 7. O-O {[%clk 0:02:56]}  Ba7 {[%clk 0:02:51]} 8. Nbd2 {[%clk 0:02:54]}  Ne7 {[%clk 0:02:47]} 9. Re1 {[%clk 0:02:52]}  Ng6 {[%clk 0:02:45]} 10. Nf1 {[%clk 0:02:53]}  O-O {[%clk 0:02:36]} 11. Ng3 {[%clk 0:02:50]}  Be6 {[%clk 0:02:30]} 12. Qb3 {[%clk 0:02:41]}  Bxc4 {[%clk 0:02:22]} 13. Qxc4 {[%clk 0:02:41]}  b5 {[%clk 0:02:22]} 14. Qb3 {[%clk 0:02:36]}  Qd7 {[%clk 0:02:21]} 15. Bg5 {[%clk 0:02:32]}  Ng4 {[%clk 0:02:19]} 16. Re2 {[%clk 0:02:28]}  h6 {[%clk 0:02:13]} 17. Bd2 {[%clk 0:02:26]}  c6 {[%clk 0:01:53]} 18. h3 {[%clk 0:02:23]}  Nf6 {[%clk 0:01:52]} 19. Nf5 {[%clk 0:02:24]}  Rfb8 {[%clk 0:01:49]} 20. Qc2 {[%clk 0:02:16]}  d5 {[%clk 0:01:45]} 21. Ng3 {[%clk 0:02:01]}  bxa4 {[%clk 0:01:31]} 22. Rxa4 {[%clk 0:01:57]}  Bb6 {[%clk 0:01:28]} 23. c4 {[%clk 0:01:43]}  dxe4 {[%clk 0:01:26]} 24. Nxe4 {[%clk 0:01:26]}  Nxe4 {[%clk 0:01:23]} 25. Rxe4 {[%clk 0:01:26]}  Qf5 {[%clk 0:01:09]} 26. Bc3 {[%clk 0:01:16]}  Re8 {[%clk 0:01:04]} 27. b4 {[%clk 0:01:02]}  Bc7 {[%clk 0:00:55]} 28. Qe2 {[%clk 0:00:53]}  Nf4 {[%clk 0:00:54]} 29. Qe3 {[%clk 0:00:52]}  Rad8 {[%clk 0:00:47]} 30. d4 {[%clk 0:00:42]}  Qg6 {[%clk 0:00:41]} 31. Ne1 {[%clk 0:00:28]}  f5 {[%clk 0:00:37]} 32. Rxe5 {[%clk 0:00:19]}  Bxe5 {[%clk 0:00:36]} 33. d5 {[%clk 0:00:20]}  Bxc3 {[%clk 0:00:33]} 0-1


[Site "https://www.chess.com"]

[Event "Titled Tuesday Blitz February 22 Early 2022"]
[White "Orozbaev, Eldiar"]
[Black "Andreikin, Dmitry"]
[WhiteFideId "13802240"]
[BlackFideId "4158814"]
[WhiteElo "2050"]
[BlackElo "2736"]
[Result "0-1"]
[Round "08"]
[TimeControl "180+1"]
[Date "2022.02.22"]
[WhiteClock "0:00:02"]
[BlackClock "0:00:36"]

1. e4 {[%clk 0:03:00]}  e5 {[%clk 0:02:58]} 2. Nf3 {[%clk 0:03:00]}  Nc6 {[%clk 0:02:57]} 3. d4 {[%clk 0:02:59]}  exd4 {[%clk 0:02:54]} 4. c3 {[%clk 0:03:00]}  Nf6 {[%clk 0:02:50]} 5. e5 {[%clk 0:02:59]}  Nd5 {[%clk 0:02:43]} 6. cxd4 {[%clk 0:02:59]}  Bb4+ {[%clk 0:02:42]} 7. Bd2 {[%clk 0:02:58]}  O-O {[%clk 0:02:42]} 8. Bd3 {[%clk 0:02:57]}  d6 {[%clk 0:02:39]} 9. O-O {[%clk 0:02:43]}  Bg4 {[%clk 0:02:34]} 10. Bg5 {[%clk 0:01:28]}  Bxf3 {[%clk 0:02:09]} 11. Qxf3 {[%clk 0:01:27]}  Qxg5 {[%clk 0:02:08]} 12. Qxd5 {[%clk 0:01:27]}  dxe5 {[%clk 0:02:02]} 13. f4 {[%clk 0:01:20]}  Qd8 {[%clk 0:01:54]} 14. Qf3 {[%clk 0:00:48]}  Qxd4+ {[%clk 0:01:47]} 15. Kh1 {[%clk 0:00:48]}  Qxb2 {[%clk 0:01:45]} 16. f5 {[%clk 0:00:29]}  e4 {[%clk 0:01:12]} 17. Qxe4 {[%clk 0:00:22]}  Qxa1 {[%clk 0:01:12]} 18. f6 {[%clk 0:00:23]}  g6 {[%clk 0:01:12]} 19. Qf4 {[%clk 0:00:19]}  Rfd8 {[%clk 0:01:08]} 20. Bc4 {[%clk 0:00:09]}  Ne5 {[%clk 0:00:52]} 21. Bb3 {[%clk 0:00:05]}  Qd4 {[%clk 0:00:50]} 22. Qg3 {[%clk 0:00:04]}  Qd3 {[%clk 0:00:44]} 23. Qf2 {[%clk 0:00:03]}  Bc5 {[%clk 0:00:42]} 24. Qf4 {[%clk 0:00:03]}  Rd4 {[%clk 0:00:38]} 25. Qf2 {[%clk 0:00:02]}  Rh4 {[%clk 0:00:36]} 0-1


[Site "https://www.chess.com"]

[Event "Titled Tuesday Blitz February 22 Early 2022"]
[White "Papasimakopoulos, Alexandros"]
[Black "Poormosavi, Seyed Kian"]
[WhiteFideId "4244125"]
[BlackFideId "12585807"]
[WhiteElo "2770"]
[BlackElo "2567"]
[Result "1-0"]
[Round "08"]
[TimeControl "180+1"]
[Date "2022.02.22"]
[WhiteClock "0:00:16"]
[BlackClock "0:00:34"]

1. d4 {[%clk 0:03:00]}  Nf6 {[%clk 0:02:57]} 2. c4 {[%clk 0:03:01]}  b6 {[%clk 0:02:57]} 3. f3 {[%clk 0:03:01]}  Bb7 {[%clk 0:02:53]} 4. e4 {[%clk 0:03:00]}  g6 {[%clk 0:02:53]} 5. Nc3 {[%clk 0:03:00]}  Bg7 {[%clk 0:02:52]} 6. Be3 {[%clk 0:03:00]}  O-O {[%clk 0:02:51]} 7. Qd2 {[%clk 0:03:01]}  d5 {[%clk 0:02:48]} 8. cxd5 {[%clk 0:02:55]}  c6 {[%clk 0:02:48]} 9. dxc6 {[%clk 0:02:51]}  Nxc6 {[%clk 0:02:49]} 10. Bb5 {[%clk 0:02:51]}  e5 {[%clk 0:02:47]} 11. Bxc6 {[%clk 0:02:40]}  Bxc6 {[%clk 0:02:46]} 12. d5 {[%clk 0:02:36]}  Bb7 {[%clk 0:02:45]} 13. Nge2 {[%clk 0:02:36]}  Ne8 {[%clk 0:02:42]} 14. O-O {[%clk 0:02:35]}  f5 {[%clk 0:02:41]} 15. b3 {[%clk 0:02:30]}  Nd6 {[%clk 0:02:40]} 16. Rac1 {[%clk 0:02:28]}  Rc8 {[%clk 0:02:37]} 17. Bg5 {[%clk 0:02:21]}  Bf6 {[%clk 0:02:35]} 18. Bh6 {[%clk 0:02:15]}  Rf7 {[%clk 0:02:34]} 19. Be3 {[%clk 0:02:12]}  Rfc7 {[%clk 0:02:32]} 20. h3 {[%clk 0:01:54]}  Ba6 {[%clk 0:02:30]} 21. Rfe1 {[%clk 0:01:52]}  Bxe2 {[%clk 0:02:27]} 22. Nxe2 {[%clk 0:01:43]}  fxe4 {[%clk 0:02:24]} 23. fxe4 {[%clk 0:01:36]}  Nxe4 {[%clk 0:02:23]} 24. Qd3 {[%clk 0:01:36]}  Nd6 {[%clk 0:02:20]} 25. Nc3 {[%clk 0:01:29]}  Qd7 {[%clk 0:02:14]} 26. Ne4 {[%clk 0:01:21]}  Bg7 {[%clk 0:02:12]} 27. Ng5 {[%clk 0:01:10]}  Nf5 {[%clk 0:02:03]} 28. Rxc7 {[%clk 0:01:04]}  Qxc7 {[%clk 0:01:59]} 29. Bf2 {[%clk 0:01:00]}  Qc2 {[%clk 0:01:50]} 30. Qa6 {[%clk 0:00:51]}  Rf8 {[%clk 0:01:48]} 31. Ne6 {[%clk 0:00:48]}  Rf7 {[%clk 0:01:47]} 32. Nxg7 {[%clk 0:00:41]}  Nxg7 {[%clk 0:01:46]} 33. Qe2 {[%clk 0:00:36]}  Qf5 {[%clk 0:01:33]} 34. Bg3 {[%clk 0:00:32]}  Rc7 {[%clk 0:01:24]} 35. d6 {[%clk 0:00:20]}  Rc2 {[%clk 0:01:22]} 36. Qxe5 {[%clk 0:00:20]}  Qxe5 {[%clk 0:01:19]} 37. Bxe5 {[%clk 0:00:20]}  Nf5 {[%clk 0:01:15]} 38. Rd1 {[%clk 0:00:19]}  Nxd6 {[%clk 0:01:01]} 39. Rxd6 {[%clk 0:00:20]}  Rxa2 {[%clk 0:01:02]} 40. Rd7 {[%clk 0:00:20]}  a5 {[%clk 0:00:59]} 41. Rg7+ {[%clk 0:00:20]}  Kf8 {[%clk 0:00:59]} 42. Rb7 {[%clk 0:00:19]}  a4 {[%clk 0:00:53]} 43. bxa4 {[%clk 0:00:20]}  Rxa4 {[%clk 0:00:54]} 44. Rxb6 {[%clk 0:00:20]}  Kf7 {[%clk 0:00:54]} 45. Rb7+ {[%clk 0:00:20]}  Ke6 {[%clk 0:00:54]} 46. Bg3 {[%clk 0:00:19]}  h5 {[%clk 0:00:53]} 47. h4 {[%clk 0:00:19]}  Rg4 {[%clk 0:00:51]} 48. Kh2 {[%clk 0:00:20]}  Kf5 {[%clk 0:00:51]} 49. Rb5+ {[%clk 0:00:19]}  Ke6 {[%clk 0:00:52]} 50. Bf2 {[%clk 0:00:20]}  Ra4 {[%clk 0:00:49]} 51. g3 {[%clk 0:00:16]}  Ra2 {[%clk 0:00:48]} 52. Kg2 {[%clk 0:00:17]}  Rc2 {[%clk 0:00:48]} 53. Kf3 {[%clk 0:00:17]}  Rc4 {[%clk 0:00:48]} 54. Be3 {[%clk 0:00:17]}  Ra4 {[%clk 0:00:48]} 55. Rb6+ {[%clk 0:00:18]}  Kf5 {[%clk 0:00:47]} 56. Rb5+ {[%clk 0:00:18]}  Ke6 {[%clk 0:00:46]} 57. Bf4 {[%clk 0:00:19]}  Ra3+ {[%clk 0:00:45]} 58. Ke2 {[%clk 0:00:19]}  Ra2+ {[%clk 0:00:45]} 59. Bd2 {[%clk 0:00:19]}  Ra3 {[%clk 0:00:44]} 60. Be3 {[%clk 0:00:18]}  Ra2+ {[%clk 0:00:44]} 61. Kd3 {[%clk 0:00:18]}  Ra4 {[%clk 0:00:45]} 62. Rg5 {[%clk 0:00:16]}  Kf7 {[%clk 0:00:44]} 63. Bd4 {[%clk 0:00:16]}  Ra3+ {[%clk 0:00:42]} 64. Bc3 {[%clk 0:00:17]}  Ra4 {[%clk 0:00:42]} 65. Rb5 {[%clk 0:00:16]}  Ke6 {[%clk 0:00:42]} 66. Rb6+ {[%clk 0:00:16]}  Kf5 {[%clk 0:00:37]} 67. Rf6+ {[%clk 0:00:16]}  Kg4 {[%clk 0:00:38]} 68. Rxg6+ {[%clk 0:00:16]}  Kh3 {[%clk 0:00:39]} 69. Be5 {[%clk 0:00:16]}  Rb4 {[%clk 0:00:37]} 70. Rg5 {[%clk 0:00:15]}  Rb5 {[%clk 0:00:34]} 71. Rxh5 {[%clk 0:00:16]} 1-0


[Site "https://www.chess.com"]

[Event "Titled Tuesday Blitz February 22 Early 2022"]
[White "Petesch, Gabriel"]
[Black "Erdogdu, Mert"]
[WhiteFideId "2032465"]
[BlackFideId "6301495"]
[WhiteElo "2574"]
[BlackElo "2744"]
[Result "0-1"]
[Round "08"]
[TimeControl "180+1"]
[Date "2022.02.22"]
[WhiteClock "0:00:04"]
[BlackClock "0:00:23"]

1. Nc3 {[%clk 0:02:54]}  d5 {[%clk 0:02:58]} 2. b3 {[%clk 0:02:49]}  Nf6 {[%clk 0:02:58]} 3. e3 {[%clk 0:02:48]}  c5 {[%clk 0:02:58]} 4. Bb2 {[%clk 0:02:48]}  Nc6 {[%clk 0:02:58]} 5. Nf3 {[%clk 0:02:47]}  e5 {[%clk 0:02:50]} 6. Bb5 {[%clk 0:02:44]}  d4 {[%clk 0:02:46]} 7. exd4 {[%clk 0:02:40]}  exd4 {[%clk 0:02:46]} 8. Ne2 {[%clk 0:02:32]}  Bd7 {[%clk 0:02:41]} 9. c3 {[%clk 0:02:24]}  Bd6 {[%clk 0:02:27]} 10. cxd4 {[%clk 0:02:16]}  O-O {[%clk 0:02:18]} 11. O-O {[%clk 0:02:11]}  a6 {[%clk 0:02:10]} 12. dxc5 {[%clk 0:02:02]}  Bxc5 {[%clk 0:02:00]} 13. d4 {[%clk 0:01:54]}  Bd6 {[%clk 0:01:52]} 14. Bd3 {[%clk 0:01:48]}  Nb4 {[%clk 0:01:51]} 15. Ng3 {[%clk 0:01:25]}  Nxd3 {[%clk 0:01:50]} 16. Qxd3 {[%clk 0:01:25]}  Bb5 {[%clk 0:01:50]} 17. Qf5 {[%clk 0:01:21]}  Bxf1 {[%clk 0:01:48]} 18. Rxf1 {[%clk 0:01:21]}  Re8 {[%clk 0:01:49]} 19. Rd1 {[%clk 0:01:17]}  Qd7 {[%clk 0:01:44]} 20. Qg5 {[%clk 0:01:10]}  h6 {[%clk 0:01:41]} 21. Qh4 {[%clk 0:01:05]}  Qg4 {[%clk 0:01:38]} 22. Qxg4 {[%clk 0:01:02]}  Nxg4 {[%clk 0:01:38]} 23. d5 {[%clk 0:01:03]}  Ne5 {[%clk 0:01:17]} 24. Nd4 {[%clk 0:00:37]}  g6 {[%clk 0:01:15]} 25. Ne4 {[%clk 0:00:35]}  Be7 {[%clk 0:01:01]} 26. d6 {[%clk 0:00:20]}  Bd8 {[%clk 0:01:00]} 27. Nf3 {[%clk 0:00:09]}  Nd7 {[%clk 0:00:52]} 28. Nc3 {[%clk 0:00:07]}  Bf6 {[%clk 0:00:47]} 29. Kf1 {[%clk 0:00:05]}  Rac8 {[%clk 0:00:47]} 30. Nd4 {[%clk 0:00:05]}  b5 {[%clk 0:00:43]} 31. Nd5 {[%clk 0:00:05]}  Bd8 {[%clk 0:00:28]} 32. Nf3 {[%clk 0:00:03]}  Rc2 {[%clk 0:00:27]} 33. Rd2 {[%clk 0:00:03]}  Rxd2 {[%clk 0:00:26]} 34. Nxd2 {[%clk 0:00:04]}  Re6 {[%clk 0:00:26]} 35. Ba3 {[%clk 0:00:04]}  a5 {[%clk 0:00:24]} 36. b4 {[%clk 0:00:04]}  Rxd6 {[%clk 0:00:23]} 0-1


[Site "https://www.chess.com"]

[Event "Titled Tuesday Blitz February 22 Early 2022"]
[White "Petrovic, Aleksa"]
[Black "Vifleemskaia, Svetlana"]
[WhiteFideId "967629"]
[BlackFideId "4129490"]
[WhiteElo "2139"]
[BlackElo "1901"]
[Result "1-0"]
[Round "08"]
[TimeControl "180+1"]
[Date "2022.02.22"]
[WhiteClock "0:00:03"]
[BlackClock "0:00:02"]

1. e4 {[%clk 0:03:00]}  e5 {[%clk 0:02:46]} 2. Nf3 {[%clk 0:03:00]}  Nc6 {[%clk 0:02:43]} 3. Bc4 {[%clk 0:02:59]}  Nf6 {[%clk 0:02:42]} 4. Qe2 {[%clk 0:02:56]}  h6 {[%clk 0:02:36]} 5. d4 {[%clk 0:02:53]}  d6 {[%clk 0:02:29]} 6. c3 {[%clk 0:02:46]}  Bg4 {[%clk 0:02:26]} 7. d5 {[%clk 0:02:33]}  Nb8 {[%clk 0:02:24]} 8. h3 {[%clk 0:02:32]}  Bc8 {[%clk 0:02:18]} 9. Nbd2 {[%clk 0:02:27]}  Be7 {[%clk 0:02:19]} 10. Nf1 {[%clk 0:02:24]}  Nbd7 {[%clk 0:02:18]} 11. g4 {[%clk 0:02:17]}  Nc5 {[%clk 0:02:13]} 12. Ng3 {[%clk 0:02:17]}  g6 {[%clk 0:02:12]} 13. b4 {[%clk 0:02:15]}  Na4 {[%clk 0:02:11]} 14. Bb3 {[%clk 0:01:53]}  Nb6 {[%clk 0:01:50]} 15. Be3 {[%clk 0:01:36]}  a5 {[%clk 0:01:45]} 16. bxa5 {[%clk 0:01:09]}  Rxa5 {[%clk 0:01:43]} 17. Nd2 {[%clk 0:01:09]}  Na4 {[%clk 0:01:29]} 18. Qc4 {[%clk 0:00:49]}  Nc5 {[%clk 0:01:27]} 19. Bxc5 {[%clk 0:00:38]}  Rxc5 {[%clk 0:01:26]} 20. Qd3 {[%clk 0:00:37]}  Ra5 {[%clk 0:01:20]} 21. Nc4 {[%clk 0:00:36]}  Ra8 {[%clk 0:01:18]} 22. Ne3 {[%clk 0:00:27]}  Bd7 {[%clk 0:01:11]} 23. a4 {[%clk 0:00:25]}  b6 {[%clk 0:01:10]} 24. O-O {[%clk 0:00:20]}  Nh7 {[%clk 0:01:06]} 25. Bc4 {[%clk 0:00:18]}  Bg5 {[%clk 0:00:57]} 26. Bb5 {[%clk 0:00:17]}  O-O {[%clk 0:00:54]} 27. Bxd7 {[%clk 0:00:14]}  Qxd7 {[%clk 0:00:53]} 28. Nc2 {[%clk 0:00:14]}  Rxa4 {[%clk 0:00:50]} 29. Nb4 {[%clk 0:00:13]}  Rfa8 {[%clk 0:00:47]} 30. Rxa4 {[%clk 0:00:13]}  Qxa4 {[%clk 0:00:44]} 31. Qc4 {[%clk 0:00:11]}  Qd7 {[%clk 0:00:40]} 32. Nc6 {[%clk 0:00:10]}  Nf6 {[%clk 0:00:23]} 33. Ne2 {[%clk 0:00:08]}  h5 {[%clk 0:00:13]} 34. f4 {[%clk 0:00:08]}  exf4 {[%clk 0:00:11]} 35. Nxf4 {[%clk 0:00:05]}  hxg4 {[%clk 0:00:11]} 36. Ne6 {[%clk 0:00:04]}  fxe6 {[%clk 0:00:06]} 37. dxe6 {[%clk 0:00:05]}  Qg7 {[%clk 0:00:05]} 38. e5 {[%clk 0:00:04]}  Ne8 {[%clk 0:00:02]} 39. e7+ {[%clk 0:00:03]}  Kh7 {[%clk 0:00:02]} 40. Rf7 {[%clk 0:00:03]} 1-0


[Site "https://www.chess.com"]

[Event "Titled Tuesday Blitz February 22 Early 2022"]
[White "Piesik, Piotr"]
[Black "Ivanisevic, Ivan"]
[WhiteFideId "1136194"]
[BlackFideId "912417"]
[WhiteElo "2232"]
[BlackElo "2495"]
[Result "0-1"]
[Round "08"]
[TimeControl "180+1"]
[Date "2022.02.22"]
[WhiteClock "0:00:28"]
[BlackClock "0:00:31"]

1. Nf3 {[%clk 0:02:57]}  Nf6 {[%clk 0:02:58]} 2. g3 {[%clk 0:02:57]}  g6 {[%clk 0:02:57]} 3. Bg2 {[%clk 0:02:58]}  Bg7 {[%clk 0:02:58]} 4. O-O {[%clk 0:02:59]}  O-O {[%clk 0:02:57]} 5. d4 {[%clk 0:02:59]}  d6 {[%clk 0:02:55]} 6. Nbd2 {[%clk 0:02:59]}  b5 {[%clk 0:02:42]} 7. Ne1 {[%clk 0:02:55]}  c6 {[%clk 0:02:40]} 8. e4 {[%clk 0:02:50]}  a5 {[%clk 0:02:37]} 9. Nd3 {[%clk 0:02:49]}  Nfd7 {[%clk 0:02:29]} 10. c3 {[%clk 0:02:47]}  e5 {[%clk 0:02:29]} 11. dxe5 {[%clk 0:02:46]}  dxe5 {[%clk 0:02:27]} 12. Nb3 {[%clk 0:02:43]}  Na6 {[%clk 0:02:24]} 13. Be3 {[%clk 0:02:43]}  Nf6 {[%clk 0:02:02]} 14. f3 {[%clk 0:02:37]}  Qc7 {[%clk 0:01:57]} 15. Qc2 {[%clk 0:02:34]}  Rd8 {[%clk 0:01:54]} 16. Rfd1 {[%clk 0:02:33]}  h5 {[%clk 0:01:49]} 17. Nbc5 {[%clk 0:02:30]}  Nxc5 {[%clk 0:01:46]} 18. Nxc5 {[%clk 0:02:30]}  Bf8 {[%clk 0:01:42]} 19. Rxd8 {[%clk 0:02:29]}  Qxd8 {[%clk 0:01:41]} 20. Rd1 {[%clk 0:02:29]}  Qc7 {[%clk 0:01:39]} 21. Bf1 {[%clk 0:02:25]}  h4 {[%clk 0:01:35]} 22. g4 {[%clk 0:02:23]}  Nh7 {[%clk 0:01:34]} 23. Qf2 {[%clk 0:02:20]}  Be7 {[%clk 0:01:33]} 24. a4 {[%clk 0:02:19]}  bxa4 {[%clk 0:01:20]} 25. Nxa4 {[%clk 0:02:12]}  Rb8 {[%clk 0:01:19]} 26. Bc4 {[%clk 0:02:07]}  Ng5 {[%clk 0:01:18]} 27. Kg2 {[%clk 0:02:01]}  h3+ {[%clk 0:01:15]} 28. Kf1 {[%clk 0:01:58]}  Kg7 {[%clk 0:01:14]} 29. Nc5 {[%clk 0:01:45]}  a4 {[%clk 0:01:08]} 30. Nxa4 {[%clk 0:01:30]}  Be6 {[%clk 0:01:08]} 31. Bxe6 {[%clk 0:01:28]}  Nxe6 {[%clk 0:01:09]} 32. b4 {[%clk 0:01:26]}  Qc8 {[%clk 0:00:50]} 33. Nc5 {[%clk 0:01:16]}  Ra8 {[%clk 0:00:46]} 34. Nd3 {[%clk 0:01:10]}  Ra3 {[%clk 0:00:41]} 35. Nxe5 {[%clk 0:01:05]}  Bf6 {[%clk 0:00:40]} 36. Nd7 {[%clk 0:00:50]}  Bxc3 {[%clk 0:00:36]} 37. Qh4 {[%clk 0:00:50]}  Qa6+ {[%clk 0:00:35]} 38. Kg1 {[%clk 0:00:48]}  Qe2 {[%clk 0:00:35]} 39. Qh6+ {[%clk 0:00:48]}  Kg8 {[%clk 0:00:34]} 40. Rd2 {[%clk 0:00:28]}  Ra1+ {[%clk 0:00:31]} 0-1


[Site "https://www.chess.com"]

[Event "Titled Tuesday Blitz February 22 Early 2022"]
[White "Pires, Marcos Vinicius Torsani"]
[Black "Gunina, Valentina"]
[WhiteFideId "2118939"]
[BlackFideId "4167570"]
[WhiteElo "2273"]
[BlackElo "2465"]
[Result "0-1"]
[Round "08"]
[TimeControl "180+1"]
[Date "2022.02.22"]
[WhiteClock "0:00:05"]
[BlackClock "0:01:23"]

1. e4 {[%clk 0:02:54]}  c6 {[%clk 0:02:59]} 2. c4 {[%clk 0:02:52]}  d5 {[%clk 0:02:59]} 3. exd5 {[%clk 0:02:53]}  cxd5 {[%clk 0:02:59]} 4. cxd5 {[%clk 0:02:54]}  Nf6 {[%clk 0:02:59]} 5. Nc3 {[%clk 0:02:54]}  Nxd5 {[%clk 0:03:00]} 6. Bc4 {[%clk 0:02:54]}  Nb6 {[%clk 0:02:59]} 7. Bb3 {[%clk 0:02:53]}  Nc6 {[%clk 0:03:00]} 8. Nf3 {[%clk 0:02:53]}  Nd4 {[%clk 0:02:51]} 9. Nxd4 {[%clk 0:02:48]}  Qxd4 {[%clk 0:02:50]} 10. O-O {[%clk 0:02:49]}  Bg4 {[%clk 0:02:49]} 11. Qe1 {[%clk 0:02:44]}  e6 {[%clk 0:02:49]} 12. d3 {[%clk 0:02:36]}  Qxd3 {[%clk 0:02:47]} 13. h3 {[%clk 0:02:30]}  Bh5 {[%clk 0:02:46]} 14. a4 {[%clk 0:02:23]}  Be7 {[%clk 0:02:45]} 15. a5 {[%clk 0:02:24]}  Nd7 {[%clk 0:02:45]} 16. Be3 {[%clk 0:01:56]}  O-O {[%clk 0:02:39]} 17. Bd1 {[%clk 0:01:56]}  Bg6 {[%clk 0:02:33]} 18. Be2 {[%clk 0:01:55]}  Qc2 {[%clk 0:02:33]} 19. Qd1 {[%clk 0:01:35]}  Qxd1 {[%clk 0:02:31]} 20. Rfxd1 {[%clk 0:01:36]}  Ne5 {[%clk 0:02:25]} 21. f4 {[%clk 0:01:23]}  Nc6 {[%clk 0:02:25]} 22. a6 {[%clk 0:01:13]}  bxa6 {[%clk 0:02:18]} 23. Bf3 {[%clk 0:01:06]}  Rac8 {[%clk 0:02:16]} 24. Rxa6 {[%clk 0:01:06]}  Nb4 {[%clk 0:02:16]} 25. Rxa7 {[%clk 0:01:04]}  Bc5 {[%clk 0:02:17]} 26. Bxc5 {[%clk 0:01:04]}  Rxc5 {[%clk 0:02:17]} 27. Rdd7 {[%clk 0:00:57]}  Nd3 {[%clk 0:02:13]} 28. Ne4 {[%clk 0:00:32]}  Rc1+ {[%clk 0:02:08]} 29. Kh2 {[%clk 0:00:30]}  Nxf4 {[%clk 0:02:07]} 30. b4 {[%clk 0:00:21]}  Rb1 {[%clk 0:02:03]} 31. Rab7 {[%clk 0:00:20]}  Rb2 {[%clk 0:02:03]} 32. b5 {[%clk 0:00:19]}  Nxg2 {[%clk 0:02:03]} 33. Kg3 {[%clk 0:00:17]}  Ne3 {[%clk 0:02:01]} 34. Nd6 {[%clk 0:00:16]}  Nf1+ {[%clk 0:01:59]} 35. Kf4 {[%clk 0:00:16]}  Rb4+ {[%clk 0:01:58]} 36. Ke5 {[%clk 0:00:11]}  Nd2 {[%clk 0:01:54]} 37. Bg2 {[%clk 0:00:09]}  Bh5 {[%clk 0:01:34]} 38. Ne4 {[%clk 0:00:07]}  Nc4+ {[%clk 0:01:24]} 39. Kf4 {[%clk 0:00:06]}  Bg6 {[%clk 0:01:24]} 40. Kg3 {[%clk 0:00:05]}  Ne5 {[%clk 0:01:23]} 41. Nf2 {[%clk 0:00:04]}  Nxd7 {[%clk 0:01:23]} 42. Rxd7 {[%clk 0:00:05]}  Rxb5 {[%clk 0:01:23]} 0-1


[Site "https://www.chess.com"]